bitfinex/quotes_BTCUSD_20241205
["timestamp","ask_amount","ask_price","bid_price","bid_amount"]
[1733379452574,0.01917343,101990.0,101970.0,0.56934805]
[1733379452794,0.01917343,101990.0,101980.0,0.39579205]
[1733379453017,0.33726157,102020.0,101990.0,0.492184]
[1733379453018,0.28876157,102020.0,101990.0,0.492184]
[1733379453230,0.02054549,102020.0,102010.0,0.32899001]
[1733379453448,0.01043206,102020.0,102010.0,0.37833505]
[1733379453656,0.00050714,102020.0,102010.0,0.37833505]
[1733379453884,0.01043206,102020.0,102010.0,0.47833505]
[1733379454117,0.0110219,102020.0,102010.0,0.28227605]
[1733379454327,0.00109698,102020.0,102010.0,0.47833505]
[1733379454549,0.01720638,102020.0,102010.0,0.47833505]
[1733379454783,0.0072929,102020.0,102010.0,0.47833505]
[1733379454988,0.0072929,102020.0,102010.0,0.61126606]
[1733379455196,0.0072929,102020.0,102010.0,0.47833505]
[1733379455653,0.0072929,102020.0,102010.0,0.61126606]
[1733379456100,0.00109698,102020.0,102010.0,0.44606874]
[1733379457255,0.00283218,102020.0,102010.0,0.44606874]
[1733379457462,0.09592094,102050.0,102020.0,0.01740268]
[1733379457671,0.00011567,102040.0,102020.0,0.11707873]
[1733379457901,0.00011567,102040.0,102020.0,0.31311773]
[1733379458536,0.00011567,102040.0,102020.0,0.50914673]
[1733379459010,0.29691533,102050.0,102020.0,0.70517673]
[1733379459292,0.49290733,102050.0,102020.0,0.5092534]
[1733379459517,0.48302061,102050.0,102020.0,0.5092534]
[1733379459750,0.48302061,102050.0,102020.0,0.3132234]
[1733379460185,0.40662061,102050.0,102030.0,0.1308]
[1733379460397,0.15,102060.0,102030.0,0.34422268]
[1733379460618,0.15987688,102060.0,102030.0,0.63989673]
[1733379460836,0.35584088,102060.0,102030.0,0.63989673]
[1733379461061,1.5,102040.0,102030.0,0.63989673]
[1733379461557,1.49954225,102040.0,102030.0,0.63989673]
[1733379462016,0.15,102060.0,102040.0,0.40938968]
[1733379462228,0.15,102060.0,102040.0,0.31306873]
[1733379462451,1.5,102050.0,102040.0,0.31306873]
[1733379462666,0.15,102060.0,102040.0,0.31306873]
[1733379462888,0.15981947,102060.0,102040.0,0.31306873]
[1733379463332,0.15981947,102060.0,102040.0,0.31306473]
[1733379463548,0.15,102060.0,102040.0,0.50905473]
[1733379463768,0.15,102060.0,102050.0,0.31306073]
[1733379465559,0.15,102060.0,102050.0,0.44599174]
[1733379465792,0.15,102060.0,102050.0,0.52909174]
[1733379466011,0.15,102060.0,102050.0,0.57719174]
[1733379466473,0.15,102060.0,102050.0,0.72719174]
[1733379466704,0.15,102060.0,102050.0,0.82719174]
[1733379466928,0.15,102060.0,102050.0,0.72719174]
[1733379468907,0.15,102060.0,102050.0,0.82719174]
[1733379469398,0.1517354,102060.0,102050.0,0.72719174]
[1733379471180,0.1517354,102060.0,102050.0,0.51380706]
[1733379471384,0.1517354,102060.0,102050.0,0.70978906]
[1733379472312,0.1517354,102060.0,102050.0,0.7430572]
[1733379472954,0.00226373,102090.0,102050.0,0.7430572]
[1733379473180,0.00837866,102090.0,102070.0,0.391875]
[1733379473809,0.00837866,102090.0,102070.0,0.195934]
[1733379474036,1.5,102080.0,102070.0,0.195934]
[1733379474267,1.49962462,102080.0,102070.0,0.195934]
[1733379474478,1.49980177,102080.0,102070.0,0.195934]
[1733379474934,1.49980177,102080.0,102060.0,0.57855606]
[1733379475160,1.49980177,102080.0,102060.0,0.38260706]
[1733379475379,1.49980177,102080.0,102060.0,0.57856906]
[1733379476498,1.49980177,102080.0,102050.0,0.70640414]
[1733379476499,0.1258,102070.0,102050.0,0.57520414]
[1733379476736,0.1,101990.0,101980.0,0.1008677]
[1733379476969,0.1,101990.0,101980.0,0.08798802]
[1733379476970,0.512028,101990.0,101980.0,0.08798802]
[1733379477202,0.512028,101990.0,101940.0,0.01700001]
[1733379477203,0.38712265,101980.0,101940.0,0.01700001]
[1733379477455,0.42904701,101980.0,101940.0,0.01700001]
[1733379477667,0.196136,101970.0,101930.0,0.01786781]
[1733379478088,0.196136,101970.0,101960.0,0.00145754]
[1733379478519,0.29581205,101970.0,101960.0,0.00145754]
[1733379479897,0.77620163,101970.0,101960.0,0.00145754]
[1733379480118,0.80184558,101970.0,101960.0,0.00145754]
[1733379481228,0.64184559,101970.0,101960.0,0.00145754]
[1733379481671,0.61620164,101970.0,101960.0,0.00145754]
[1733379481878,0.42006564,101970.0,101960.0,0.00145754]
[1733379482091,0.61620164,101970.0,101960.0,0.00145754]
[1733379482596,0.63818021,101970.0,101960.0,0.00145754]
[1733379485538,0.67186463,101970.0,101960.0,0.00145754]
[1733379485768,0.08299999,101950.0,101940.0,0.0008671]
[1733379485991,0.63369318,101950.0,101940.0,0.0008671]
[1733379486468,0.53369318,101950.0,101940.0,0.0008671]
[1733379486707,0.53369318,101950.0,101940.0,1e-07]
[1733379486922,0.53369318,101950.0,101930.0,0.0008678]
[1733379486923,0.196193,101940.0,101930.0,0.0008678]
[1733379487126,0.62165012,101940.0,101930.0,0.0008678]
[1733379487542,0.45081012,101940.0,101930.0,0.0008678]
[1733379487764,0.64700312,101940.0,101930.0,0.0008678]
[1733379488713,0.61845994,101940.0,101930.0,0.0008678]
[1733379489160,0.64480815,101940.0,101930.0,0.0008678]
[1733379490262,0.64480815,101940.0,101930.0,8e-07]
[1733379490898,0.57870236,101920.0,101910.0,0.0217352]
[1733379491119,0.77629763,101920.0,101910.0,0.0217352]
[1733379491337,0.19627,101900.0,101890.0,0.0253524]
[1733379491612,0.29594605,101900.0,101890.0,0.0253524]
[1733379492060,0.09967605,101900.0,101890.0,0.0253524]
[1733379492306,0.70268384,101900.0,101890.0,0.02546807]
[1733379492735,0.70268384,101900.0,101890.0,0.02445507]
[1733379494172,0.60476462,101900.0,101890.0,0.02445507]
[1733379495816,0.61973851,101900.0,101890.0,0.02445507]
[1733379497279,0.61973851,101900.0,101890.0,0.00763067]
[1733379497482,0.08299999,101890.0,101880.0,0.05]
[1733379497691,0.49543642,101890.0,101880.0,0.05017675]
[1733379497899,0.59003236,101890.0,101880.0,0.05017675]
[1733379498146,0.69003236,101890.0,101880.0,0.05017675]
[1733379498355,0.69003236,101890.0,101870.0,0.0008673]
[1733379498356,0.7204885,101880.0,101870.0,0.0008673]
[1733379498577,0.76740189,101880.0,101870.0,0.0008673]
[1733379498996,0.67845541,101880.0,101870.0,0.0008673]
[1733379499206,0.70369417,101880.0,101870.0,0.0008673]
[1733379499854,0.62069418,101880.0,101870.0,0.0008673]
[1733379500341,0.59545542,101880.0,101870.0,0.0008673]
[1733379500575,0.79492579,101880.0,101870.0,0.0008673]
[1733379500779,0.47881736,101860.0,101850.0,0.00080782]
[1733379501005,0.57849341,101860.0,101850.0,0.00080782]
[1733379501430,0.37902304,101860.0,101850.0,0.00080782]
[1733379501863,0.38214641,101860.0,101850.0,0.00080782]
[1733379502070,0.57849341,101860.0,101850.0,0.00080782]
[1733379504676,0.37902304,101860.0,101850.0,0.00080782]
[1733379505519,0.40232069,101860.0,101850.0,0.00080782]
[1733379505733,0.29602305,101860.0,101850.0,0.00080782]
[1733379505949,0.11943648,101860.0,101850.0,0.00080782]
[1733379506139,0.31578348,101860.0,101850.0,0.00080782]
[1733379506669,0.38663063,101860.0,101850.0,0.00080782]
[1733379507482,0.30930668,101860.0,101850.0,0.00080782]
[1733379507687,0.1705232,101860.0,101850.0,0.00080782]
[1733379507984,0.32087065,101860.0,101850.0,0.00080782]
[1733379508434,0.29602305,101860.0,101850.0,0.00080782]
[1733379508638,0.32626065,101860.0,101850.0,0.00080782]
[1733379508998,0.35950055,101860.0,101850.0,0.00080782]
[1733379512081,0.16315355,101860.0,101850.0,0.00080782]
[1733379512500,0.35950055,101860.0,101850.0,0.00080782]
[1733379513422,0.2598245,101860.0,101850.0,0.00080782]
[1733379513883,0.35950055,101860.0,101850.0,0.00080782]
[1733379514702,0.37063162,101860.0,101850.0,0.00080782]
[1733379515165,0.50390106,101860.0,101850.0,0.00080782]
[1733379516869,0.31576999,101860.0,101850.0,0.00080782]
[1733379517010,0.23294549,101860.0,101850.0,0.00080782]
[1733379517186,0.42929249,101860.0,101850.0,0.00080782]
[1733379517844,0.0474,101840.0,101810.0,0.00031148]
[1733379518045,0.32969444,101820.0,101810.0,0.00031148]
[1733379518337,0.42937049,101820.0,101810.0,0.00031148]
[1733379518537,0.44610105,101820.0,101810.0,0.00031148]
[1733379518877,0.346444,101810.0,101800.0,0.02347259]
[1733379519164,0.57956605,101810.0,101800.0,0.02347259]
[1733379519371,0.60846431,101810.0,101800.0,0.02347259]
[1733379519592,0.57956605,101810.0,101800.0,0.02347259]
[1733379519802,0.24985261,101810.0,101800.0,0.02347259]
[1733379520011,0.15017656,101810.0,101800.0,0.02347259]
[1733379521006,0.15017656,101810.0,101800.0,0.26873559]
[1733379521656,0.15017656,101810.0,101800.0,0.2857356]
[1733379521864,0.12317656,101820.0,101800.0,0.2857356]
[1733379522100,0.12317656,101820.0,101800.0,0.06938839]
[1733379522308,0.09967605,101810.0,101800.0,0.02058839]
[1733379522532,0.29612005,101810.0,101800.0,0.02058839]
[1733379522737,0.09967605,101810.0,101800.0,0.02058839]
[1733379522947,0.32316599,101810.0,101800.0,0.02058839]
[1733379523116,0.12672199,101810.0,101800.0,0.02058839]
[1733379523620,0.09967605,101810.0,101800.0,0.02058839]
[1733379524396,0.13412283,101810.0,101800.0,0.02058839]
[1733379524616,0.12800532,101810.0,101800.0,0.02058839]
[1733379525442,0.12317656,101820.0,101800.0,0.02058839]
[1733379525612,0.22285261,101820.0,101800.0,0.02058839]
[1733379525814,0.25118188,101820.0,101800.0,0.02058839]
[1733379526040,0.22285261,101820.0,101800.0,0.02058839]
[1733379526249,0.22285261,101820.0,101800.0,0.2340414]
[1733379526250,0.12317656,101820.0,101800.0,0.2340414]
[1733379526455,0.21605652,101830.0,101800.0,0.2340354]
[1733379526671,0.00611794,101820.0,101800.0,0.2340354]
[1733379526843,0.32442132,101830.0,101800.0,0.2340354]
[1733379527071,0.49250905,101830.0,101800.0,0.2340354]
[1733379527280,0.49250905,101830.0,101800.0,0.4313672]
[1733379527705,0.09967605,101830.0,101800.0,0.6278202]
[1733379527910,0.09967605,101830.0,101810.0,0.196443]
[1733379528103,0.09967605,101830.0,101810.0,0.392887]
[1733379528562,0.09967605,101830.0,101810.0,0.196443]
[1733379528785,0.09967605,101830.0,101800.0,0.38001918]
[1733379528994,0.02007652,101820.0,101800.0,0.38001918]
[1733379529215,0.02007652,101820.0,101800.0,0.18356818]
[1733379529954,0.02007652,101820.0,101800.0,0.38002118]
[1733379530171,0.02007652,101820.0,101810.0,0.196444]
[1733379530392,0.01921552,101820.0,101800.0,0.38001818]
[1733379530609,1.5,101810.0,101800.0,0.38001818]
[1733379531548,0.01921552,101820.0,101800.0,0.38001818]
[1733379531995,0.01884705,101820.0,101800.0,0.38001818]
[1733379532904,0.392835,101830.0,101800.0,0.47969423]
[1733379533138,0.49251105,101830.0,101800.0,0.1973278]
[1733379533375,0.68893205,101830.0,101800.0,0.3937898]
[1733379533618,0.09967605,101830.0,101800.0,0.0008688]
[1733379533862,0.49254905,101820.0,101800.0,0.0008688]
[1733379534083,0.68898805,101820.0,101800.0,0.0008688]
[1733379534297,0.196444,101810.0,101800.0,0.0008688]
[1733379534975,0.19623535,101810.0,101800.0,0.0008688]
[1733379535422,0.2959114,101810.0,101800.0,0.0008688]
[1733379535662,0.59592331,101810.0,101800.0,0.0008688]
[1733379535942,0.49383062,101810.0,101800.0,0.0008688]
[1733379537065,0.3959114,101810.0,101800.0,0.0008688]
[1733379537293,0.1,101800.0,101790.0,0.01683889]
[1733379537581,0.1,101790.0,101780.0,0.2508678]
[1733379537786,0.19967605,101790.0,101780.0,0.2508678]
[1733379538018,0.39615805,101790.0,101780.0,0.2508678]
[1733379538240,0.49407727,101790.0,101780.0,0.2508678]
[1733379539167,0.62378448,101790.0,101780.0,0.2508678]
[1733379539634,0.79559639,101790.0,101780.0,0.2508678]
[1733379539862,0.296502,101780.0,101770.0,0.0015004]
[1733379540102,0.42588526,101780.0,101770.0,0.0015004]
[1733379540337,0.52345902,101780.0,101770.0,0.0015004]
[1733379540625,0.72347093,101780.0,101770.0,0.0015004]
[1733379540907,0.196521,101770.0,101750.0,0.0204]
[1733379541160,0.29621454,101750.0,101740.0,0.0023967]
[1733379541402,0.29623605,101750.0,101740.0,0.0023967]
[1733379541613,0.32792226,101750.0,101740.0,0.0023967]
[1733379541841,0.59903281,101750.0,101740.0,0.0023967]
[1733379542053,0.40247281,101750.0,101740.0,0.0023967]
[1733379542286,0.59903281,101750.0,101740.0,0.0023967]
[1733379542531,0.59962338,101750.0,101740.0,0.00209694]
[1733379543030,0.69998075,101750.0,101740.0,0.00209694]
[1733379543274,0.56793717,101750.0,101740.0,1e-08]
[1733379543507,0.29682662,101750.0,101740.0,1e-08]
[1733379543768,0.42995492,101750.0,101740.0,1e-08]
[1733379544271,0.32957199,101750.0,101740.0,1e-08]
[1733379544479,0.0271371,101750.0,101730.0,0.29941904]
[1733379544704,0.00059057,101750.0,101740.0,0.277079]
[1733379546242,0.00059057,101750.0,101740.0,0.0805]
[1733379546458,0.19715057,101750.0,101740.0,0.0805]
[1733379546896,0.00059057,101750.0,101740.0,0.0805]
[1733379547343,0.19715057,101750.0,101740.0,0.0805]
[1733379547552,0.02015057,101750.0,101740.0,0.0805]
[1733379547766,0.41291547,101760.0,101740.0,0.0805]
[1733379547992,0.19656,101750.0,101740.0,0.08109057]
[1733379548200,0.49660929,101760.0,101740.0,0.08109057]
[1733379548441,0.41291647,101760.0,101740.0,0.27766957]
[1733379548674,0.44681295,101760.0,101740.0,0.27766957]
[1733379548901,0.74650091,101760.0,101740.0,0.00059057]
[1733379549152,0.19656,101750.0,101740.0,0.00059057]
[1733379549828,0.60946947,101760.0,101740.0,0.00059057]
[1733379550053,0.19656,101750.0,101740.0,2.00059057]
[1733379550281,0.41291547,101760.0,101740.0,2.19716757]
[1733379550522,0.41291547,101760.0,101740.0,1.71363088]
[1733379550731,0.19656,101750.0,101740.0,1.71363088]
[1733379551219,0.19656,101750.0,101740.0,1.71449788]
[1733379551688,0.41291547,101760.0,101740.0,1.71449788]
[1733379551896,0.41291447,101760.0,101740.0,1.91107588]
[1733379552123,0.44681195,101760.0,101740.0,2.10764488]
[1733379552371,0.44681195,101760.0,101740.0,1.91106688]
[1733379552598,0.25025995,101760.0,101740.0,2.10764488]
[1733379552866,0.44681095,101760.0,101740.0,1.91106688]
[1733379553083,0.41291347,101760.0,101740.0,1.91106688]
[1733379553302,0.60946747,101760.0,101740.0,1.71449788]
[1733379553527,0.41291347,101760.0,101740.0,1.71449788]
[1733379553777,0.19656,101750.0,101740.0,1.71449788]
[1733379554006,0.64280507,101760.0,101740.0,1.71449788]
[1733379554239,0.64280607,101760.0,101740.0,1.91107588]
[1733379554687,0.19656,101750.0,101740.0,1.71449788]
[1733379555396,0.41291347,101760.0,101740.0,1.71449788]
[1733379555622,0.19656,101750.0,101740.0,1.71449788]
[1733379556272,0.25750735,101750.0,101740.0,1.71449788]
[1733379556490,0.19656,101750.0,101740.0,1.71449788]
[1733379557587,0.01956,101750.0,101740.0,1.71449788]
[1733379557803,0.41291347,101760.0,101740.0,1.71449788]
[1733379558017,0.29623605,101750.0,101740.0,1.71449788]
[1733379558232,0.49624796,101750.0,101740.0,1.42757452]
[1733379558450,0.59416718,101750.0,101740.0,1.42757452]
[1733379558673,0.62280416,101750.0,101740.0,1.42757452]
[1733379558893,0.8227537,101750.0,101740.0,1.42757452]
[1733379559394,0.8227537,101750.0,101730.0,0.05582504]
[1733379559395,0.196579,101740.0,101730.0,0.05582504]
[1733379559619,0.29625505,101740.0,101730.0,0.05582504]
[1733379559827,0.34006569,101740.0,101730.0,0.05582504]
[1733379560271,0.66871458,101740.0,101730.0,0.05582504]
[1733379560487,0.46870267,101740.0,101730.0,0.05582504]
[1733379561208,0.76866412,101740.0,101730.0,0.05582504]
[1733379561441,0.66866412,101740.0,101730.0,0.05582504]
[1733379561906,0.64002714,101740.0,101730.0,0.05582504]
[1733379562343,0.64002714,101740.0,101730.0,0.02055945]
[1733379562552,0.64002714,101740.0,101730.0,0.02026431]
[1733379562775,0.5400776,101740.0,101730.0,0.02026431]
[1733379563176,0.55027728,101740.0,101730.0,0.02026431]
[1733379563411,0.71978797,101740.0,101730.0,3.1e-07]
[1733379563627,0.346666,101700.0,101670.0,0.20979131]
[1733379563830,0.543339,101700.0,101680.0,0.09998781]
[1733379564055,0.196676,101690.0,101680.0,0.00031176]
[1733379564284,0.15,101700.0,101680.0,0.29667981]
[1733379564523,0.15,101700.0,101680.0,0.49335881]
[1733379564729,0.15,101700.0,101680.0,0.29666681]
[1733379564955,0.15,101700.0,101670.0,0.50980322]
[1733379564956,0.3472462,101700.0,101670.0,0.40649531]
[1733379565161,0.196676,101690.0,101670.0,0.30946736]
[1733379565423,0.196676,101690.0,101670.0,0.01309431]
[1733379565424,0.393361,101690.0,101670.0,0.01309431]
[1733379565641,0.196695,101680.0,101670.0,0.01309431]
[1733379565855,0.393361,101690.0,101670.0,0.01309431]
[1733379566106,0.196695,101680.0,101670.0,0.01309431]
[1733379566532,0.393361,101690.0,101670.0,0.09549431]
[1733379566755,0.393361,101690.0,101670.0,0.29220831]
[1733379567397,0.44775612,101690.0,101670.0,0.09549431]
[1733379567607,0.196695,101680.0,101670.0,0.09549431]
[1733379568318,0.590064,101690.0,101670.0,0.09549431]
[1733379568530,0.393374,101690.0,101670.0,0.09549431]
[1733379568789,0.41338407,101690.0,101670.0,0.09549431]
[1733379569015,0.41338407,101690.0,101670.0,0.29220731]
[1733379569271,0.41338407,101690.0,101670.0,0.09549431]
[1733379569503,0.196695,101680.0,101670.0,0.01309431]
[1733379569930,0.61007307,101690.0,101670.0,0.01309431]
[1733379570378,0.21669707,101690.0,101670.0,0.20980631]
[1733379570591,1.5,101680.0,101670.0,0.20980631]
[1733379570801,1.5,101680.0,101670.0,0.40652031]
[1733379571654,1.5,101680.0,101670.0,0.20980631]
[1733379572116,0.41337407,101690.0,101670.0,0.20980631]
[1733379572541,0.02001207,101690.0,101670.0,0.60321631]
[1733379572760,0.21669007,101690.0,101670.0,0.60321631]
[1733379572966,1.5,101680.0,101670.0,0.20979931]
[1733379573215,0.196734,101660.0,101650.0,0.02914564]
[1733379573456,0.59642196,101660.0,101650.0,0.00261162]
[1733379573662,0.79866349,101660.0,101650.0,0.00261162]
[1733379574531,0.79925333,101660.0,101650.0,0.00261162]
[1733379574827,0.196792,101630.0,101610.0,0.27697909]
[1733379575041,0.196792,101630.0,101610.0,0.57347214]
[1733379575249,0.196792,101630.0,101610.0,0.79800905]
[1733379575465,0.196792,101630.0,101610.0,0.60119005]
[1733379575928,0.393595,101630.0,101610.0,0.40406129]
[1733379576152,0.393595,101630.0,101610.0,0.60088129]
[1733379576359,0.393566,101640.0,101610.0,0.59922796]
[1733379576580,0.393566,101640.0,101620.0,0.196811]
[1733379576806,0.590351,101640.0,101610.0,0.55080379]
[1733379577044,0.393566,101640.0,101620.0,0.19681]
[1733379577716,0.41284575,101640.0,101620.0,0.19681]
[1733379577936,0.60963375,101640.0,101610.0,0.74761779]
[1733379578152,0.41284575,101640.0,101610.0,0.35398379]
[1733379578369,0.41284575,101640.0,101620.0,0.393619]
[1733379578603,0.41284575,101640.0,101620.0,0.196808]
[1733379578841,0.21606075,101640.0,101620.0,0.393619]
[1733379579042,0.21606075,101640.0,101620.0,0.196808]
[1733379579298,0.46441962,101640.0,101620.0,0.196802]
[1733379579543,0.26763562,101640.0,101610.0,0.55080379]
[1733379579769,0.46441962,101640.0,101610.0,0.74762479]
[1733379579947,1.5,101630.0,101620.0,0.196811]
[1733379580762,1.5,101630.0,101620.0,0.195811]
[1733379581346,1.5,101630.0,101610.0,0.74762379]
[1733379581564,1.5,101630.0,101610.0,0.55080379]
[1733379581988,1.5,101630.0,101620.0,0.196811]
[1733379582219,1.5,101630.0,101610.0,0.74762079]
[1733379582483,1.5,101630.0,101610.0,0.55080079]
[1733379582679,0.41283675,101640.0,101610.0,0.55080079]
[1733379582888,0.46673546,101640.0,101610.0,0.55080079]
[1733379583116,0.66352246,101640.0,101610.0,0.74762079]
[1733379583328,0.46673546,101640.0,101620.0,0.19681]
[1733379583529,1.5,101630.0,101620.0,0.19681]
[1733379583754,1.5,101630.0,101610.0,0.74762079]
[1733379583985,1.5,101630.0,101620.0,0.196811]
[1733379585735,0.41283675,101640.0,101620.0,0.196811]
[1733379585958,0.60962175,101640.0,101620.0,0.196811]
[1733379586199,1.5,101630.0,101620.0,0.196811]
[1733379586452,1.893605,101630.0,101610.0,0.32626588]
[1733379586678,1.893605,101630.0,101610.0,0.52308488]
[1733379586901,1.696801,101630.0,101610.0,0.71990488]
[1733379587327,1.893607,101630.0,101620.0,0.0008683]
[1733379587544,0.393607,101630.0,101620.0,0.0008683]
[1733379588424,0.49328305,101630.0,101620.0,0.0008683]
[1733379588652,0.56160725,101630.0,101620.0,0.0008683]
[1733379589323,0.49328305,101630.0,101620.0,0.0008683]
[1733379589779,0.67470038,101630.0,101620.0,0.0008683]
[1733379590487,0.77464992,101630.0,101620.0,0.0008683]
[1733379590709,0.64083259,101630.0,101620.0,0.0008683]
[1733379590918,0.54088305,101630.0,101620.0,0.0008683]
[1733379591128,0.49328305,101630.0,101620.0,0.0008683]
[1733379591735,0.58585886,101630.0,101620.0,0.0008683]
[1733379591927,0.49328305,101630.0,101620.0,0.0008683]
[1733379593123,0.22345829,101630.0,101620.0,0.0008683]
[1733379593325,0.02665729,101630.0,101620.0,0.0008683]
[1733379593656,0.279388,101640.0,101620.0,0.1976773]
[1733379593861,0.393521,101650.0,101620.0,0.3944723]
[1733379594091,0.393521,101650.0,101630.0,0.278983]
[1733379594092,0.49319205,101650.0,101630.0,0.278983]
[1733379594327,0.01959285,101640.0,101630.0,0.278983]
[1733379594539,0.01959285,101640.0,101630.0,0.196783]
[1733379594674,0.01959285,101640.0,101620.0,0.3944623]
[1733379594675,0.21636485,101640.0,101620.0,0.3944623]
[1733379594875,1.5,101630.0,101620.0,0.3944623]
[1733379595148,1.5,101630.0,101620.0,0.1976633]
[1733379597458,1.5,101630.0,101620.0,0.29733935]
[1733379598400,0.21636785,101640.0,101620.0,0.1976633]
[1733379598788,0.15,101640.0,101630.0,0.196792]
[1733379599159,0.346773,101640.0,101620.0,0.3944653]
[1733379599361,0.34642007,101640.0,101620.0,0.5912673]
[1733379599539,1.5,101630.0,101620.0,0.3944653]
[1733379602386,0.54321207,101640.0,101620.0,0.3944653]
[1733379602614,0.56299707,101640.0,101620.0,0.3944653]
[1733379602819,0.196792,101630.0,101620.0,0.0008683]
[1733379603241,0.36621207,101640.0,101620.0,0.0008683]
[1733379603508,0.36621207,101640.0,101620.0,0.3944903]
[1733379603733,0.24413976,101650.0,101630.0,0.196775]
[1733379603942,0.04737776,101650.0,101640.0,0.196772]
[1733379604148,0.01954119,101650.0,101640.0,0.196772]
[1733379604844,0.50962984,101660.0,101640.0,0.196772]
[1733379605079,0.39406884,101660.0,101640.0,0.471124]
[1733379605300,1.5,101650.0,101640.0,0.196762]
[1733379605507,0.39406984,101660.0,101640.0,0.196762]
[1733379605943,0.59081584,101660.0,101640.0,0.196762]
[1733379606161,0.59081684,101660.0,101640.0,0.196762]
[1733379606367,0.39406984,101660.0,101640.0,0.393526]
[1733379606796,0.196753,101650.0,101630.0,0.59034]
[1733379606973,1.5,101640.0,101630.0,0.393558]
[1733379607238,0.393517,101650.0,101630.0,0.196777]
[1733379607474,0.393517,101650.0,101630.0,0.393558]
[1733379607724,0.196782,101640.0,101620.0,0.2074729]
[1733379607911,0.196782,101640.0,101620.0,0.0106729]
[1733379608146,0.196782,101640.0,101620.0,0.4042799]
[1733379608365,0.196782,101640.0,101620.0,0.4042679]
[1733379608572,0.196782,101640.0,101620.0,0.6010679]
[1733379608800,0.196782,101640.0,101620.0,0.6010669]
[1733379609227,0.68997305,101650.0,101620.0,0.6010669]
[1733379609434,0.49320205,101650.0,101630.0,0.19678]
[1733379609850,0.68996605,101650.0,101630.0,0.19678]
[1733379610064,0.29643805,101650.0,101630.0,0.393561]
[1733379610283,0.29643805,101650.0,101630.0,0.590343]
[1733379610485,0.29643805,101650.0,101630.0,0.393561]
[1733379610733,0.0017372,101640.0,101620.0,0.4042749]
[1733379610960,0.1985092,101640.0,101620.0,0.4042749]
[1733379611187,0.1985092,101640.0,101620.0,0.6010759]
[1733379611413,0.0017372,101640.0,101630.0,0.196792]
[1733379611639,0.0017372,101640.0,101620.0,0.4042749]
[1733379611866,0.0017372,101640.0,101630.0,0.196792]
[1733379612782,0.58508019,101660.0,101640.0,0.196765]
[1733379613001,0.68475624,101660.0,101640.0,0.196765]
[1733379613266,0.196753,101650.0,101630.0,0.393571]
[1733379613488,0.196753,101650.0,101620.0,0.5250703]
[1733379613489,0.393515,101650.0,101620.0,0.5250703]
[1733379613709,0.196772,101640.0,101620.0,0.7218723]
[1733379614132,0.41357837,101650.0,101620.0,0.7218723]
[1733379614133,0.61034437,101650.0,101630.0,0.196792]
[1733379614342,0.71002042,101650.0,101620.0,0.5250703]
[1733379614599,0.196772,101640.0,101620.0,0.7218713]
[1733379614836,0.71002242,101650.0,101630.0,0.196792]
[1733379615788,0.51325442,101650.0,101630.0,0.393584]
[1733379616015,0.02006337,101650.0,101640.0,0.196772]
[1733379616888,0.41356937,101650.0,101630.0,0.393583]
[1733379617121,0.02006337,101650.0,101640.0,0.196772]
[1733379617346,0.41670183,101660.0,101640.0,0.393534]
[1733379617573,0.31963288,101660.0,101640.0,0.393525]
[1733379617810,0.50897488,101660.0,101640.0,0.393525]
[1733379618020,0.09994954,101650.0,101620.0,0.196811]
[1733379618235,0.19994954,101650.0,101640.0,0.196761]
[1733379618471,0.19932869,101650.0,101640.0,0.196761]
[1733379618696,0.09932869,101650.0,101640.0,0.196761]
[1733379618924,0.59284169,101650.0,101630.0,0.196776]
[1733379619150,0.19932869,101650.0,101630.0,0.196792]
[1733379619375,0.39608369,101650.0,101630.0,0.196792]
[1733379619595,0.19932869,101650.0,101630.0,0.393575]
[1733379619827,0.19932869,101650.0,101630.0,0.393574]
[1733379620063,0.39608269,101650.0,101630.0,0.196783]
[1733379620307,0.39608269,101650.0,101630.0,0.393566]
[1733379620746,0.59284469,101650.0,101630.0,0.196783]
[1733379620979,0.39608269,101650.0,101630.0,0.196783]
[1733379621185,0.39608269,101650.0,101630.0,0.393574]
[1733379621401,0.19932869,101650.0,101630.0,0.393564]
[1733379621879,0.39608169,101650.0,101630.0,0.196781]
[1733379622108,0.49676818,101650.0,101620.0,0.59387066]
[1733379622334,0.21910969,101640.0,101610.0,0.320919]
[1733379622553,0.196801,101630.0,101610.0,0.22377605]
[1733379622797,0.21911069,101640.0,101610.0,0.42060205]
[1733379623022,0.196793,101630.0,101610.0,0.61742305]
[1733379623243,0.196793,101630.0,101610.0,0.61741905]
[1733379623505,0.41589569,101640.0,101610.0,0.94804501]
[1733379623730,0.0017382,101650.0,101630.0,0.33058196]
[1733379623937,0.0017382,101650.0,101640.0,0.196772]
[1733379624149,0.0017382,101650.0,101630.0,0.52735796]
[1733379624355,0.1984922,101650.0,101620.0,0.62708001]
[1733379624561,0.1984922,101650.0,101630.0,0.196791]
[1733379624802,0.1984922,101650.0,101630.0,0.590349]
[1733379624803,0.0017382,101650.0,101630.0,0.590349]
[1733379625038,0.0017382,101650.0,101640.0,0.196772]
[1733379625267,0.1984942,101650.0,101630.0,0.393558]
[1733379625724,0.0017382,101650.0,101630.0,0.393555]
[1733379626460,0.0017382,101650.0,101630.0,0.590335]
[1733379626679,0.1984922,101650.0,101630.0,0.393555]
[1733379626886,0.0214922,101650.0,101630.0,0.393555]
[1733379627090,1.91581669,101660.0,101630.0,0.393555]
[1733379627302,2.01549274,101660.0,101630.0,0.590337]
[1733379627512,2.21224274,101660.0,101630.0,0.393555]
[1733379628345,2.21224274,101660.0,101630.0,0.590336]
[1733379628550,2.21224274,101660.0,101630.0,0.393555]
[1733379629217,0.196754,101650.0,101630.0,0.196776]
[1733379629426,0.196781,101640.0,101620.0,0.196797]
[1733379629631,0.41589769,101640.0,101610.0,0.517738]
[1733379629835,0.196793,101630.0,101610.0,0.320917]
[1733379630052,1.893586,101630.0,101610.0,0.273517]
[1733379630488,0.196793,101630.0,101610.0,0.273517]
[1733379630741,0.196793,101630.0,101610.0,0.470339]
[1733379630947,1.5,101610.0,101600.0,0.0779]
[1733379631182,1.5,101610.0,101600.0,0.27475]
[1733379632085,1.5,101610.0,101600.0,0.50823101]
[1733379632293,1.5,101610.0,101600.0,0.50882085]
[1733379632520,0.26879369,101650.0,101620.0,0.393596]
[1733379632724,0.12200474,101650.0,101620.0,0.244897]
[1733379632963,0.02232869,101640.0,101620.0,0.2827662]
[1733379633191,0.02232869,101640.0,101620.0,0.4795642]
[1733379633410,0.02232869,101640.0,101630.0,0.196792]
[1733379634251,0.02232869,101640.0,101620.0,0.4795672]
[1733379634463,0.21910169,101640.0,101620.0,0.4795672]
[1733379635102,0.41588469,101640.0,101620.0,0.244896]